lending/lending_fUSD_20250210
["ID","MTS","AMOUNT","RATE_DAILY","PERIOD"]
[352633776,1739211038614,-500.0,0.00010958,2]
[352633779,1739211038626,-500.0,0.00010958,2]
[352633781,1739211038636,-614.24,0.00010958,2]
[352633783,1739211038646,-500.0,0.00010958,2]
[352633786,1739211038655,-500.0,0.00010958,2]
[352633789,1739211038665,-752.9,0.00010958,2]
[352633792,1739211038676,-500.0,0.00010958,2]
[352633795,1739211038686,-500.0,0.00010958,2]
[352633798,1739211038696,-500.0,0.00010958,2]
[352633801,1739211038707,-902.94,0.00010958,2]
[352633804,1739211038717,-500.0,0.00010958,2]
[352633807,1739211038726,-164.03712,0.00010958,2]
[352633809,1739211038735,-509.77,0.00010958,2]
[352633811,1739211038744,-500.0,0.00010958,2]
[352633814,1739211038755,-500.0,0.00010958,2]
[352633816,1739211038764,-500.0,0.00010958,2]
[352633817,1739211038773,-500.0,0.00010958,2]
[352633819,1739211038783,-500.0,0.00010958,2]
[352633821,1739211038792,-529.41,0.00010958,2]
[352633824,1739211038801,-500.0,0.00010958,2]
[352633825,1739211038811,-500.0,0.00010958,2]
[352633827,1739211038821,-500.0,0.00010958,2]
[352633829,1739211038830,-810.2,0.00010958,2]
[352633831,1739211038839,-500.0,0.00010958,2]
[352633833,1739211038849,-500.0,0.00010958,2]
[352633835,1739211038858,-500.0,0.00010958,2]
[352633837,1739211038867,-1151.84187513,0.00010958,2]
[352633839,1739211038877,-907.27,0.00010958,2]
[352633841,1739211038889,-500.0,0.00010958,2]
[352633843,1739211038898,-500.0,0.00010958,2]
[352633845,1739211038907,-606.06,0.00010958,2]
[352633847,1739211038917,-500.0,0.00010958,2]
[352633849,1739211038926,-500.0,0.00010958,2]
[352633851,1739211038936,-500.0,0.00010958,2]
[352633853,1739211038945,-500.0,0.00010958,2]
[352633855,1739211038954,-500.0,0.00010958,2]
[352633857,1739211038963,-500.93221333,0.00010958,2]
[352633859,1739211038973,-500.0,0.00010958,2]
[352633861,1739211038982,-500.0,0.00010958,2]
[352633863,1739211038992,-500.0,0.00010958,2]
[352633865,1739211039001,-500.0,0.00010958,2]
[352633867,1739211039010,-500.0,0.00010958,2]
[352633869,1739211039019,-979.28,0.00010958,2]
[352633871,1739211039028,-500.0,0.00010958,2]
[352633873,1739211039038,-500.0,0.00010958,2]
[352633875,1739211039047,-500.0,0.00010958,2]
[352633877,1739211039056,-500.0,0.00010958,2]
[352633879,1739211039065,-500.0,0.00010958,2]
[352633881,1739211039075,-502.16219687,0.00010958,2]
[352633883,1739211039084,-500.0,0.00010958,2]
[352633885,1739211039093,-500.0,0.00010958,2]
[352633887,1739211039102,-500.0,0.00010958,2]
[352633889,1739211039111,-501.79003758,0.00010958,2]
[352633891,1739211039121,-500.0,0.00010958,2]
[352633893,1739211039130,-500.0,0.00010958,2]
[352633895,1739211039139,-500.0,0.00010958,2]
[352633897,1739211039148,-578.63,0.00010958,2]
[352633899,1739211039157,-500.0,0.00010958,2]
[352633901,1739211039166,-500.0,0.00010958,2]
[352633903,1739211039176,-500.0,0.00010958,2]
[352633905,1739211039185,-500.0,0.00010958,2]
[352633907,1739211039194,-496.7192091,0.00010958,2]
[352633909,1739211039208,-3.2807909,0.00010958,2]
[352633911,1739211039218,-500.0,0.00010958,2]
[352633913,1739211039227,-500.0,0.00010958,2]
[352633915,1739211039236,-500.0,0.00010958,2]
[352633917,1739211039245,-0.60446695,0.00010958,2]
[352633919,1739211039256,-499.39553305,0.00010958,2]
[352633922,1739211039266,-500.0,0.00010958,2]
[352633924,1739211039275,-1019.95483511,0.00010958,2]
[352633927,1739211039301,-169.68516489,0.00010958,2]
[352633929,1739211039311,-960.33,0.00010958,2]
[352633931,1739211039321,-500.0,0.00010958,2]
[352633933,1739211039330,-639.99886059,0.00010958,2]
[352633935,1739211039339,-500.0,0.00010958,2]
[352633937,1739211039349,-500.0,0.00010958,2]
[352633939,1739211039359,-500.0,0.00010958,2]
[352633941,1739211039369,-500.0,0.00010958,2]
[352633943,1739211039378,-500.0,0.00010958,2]
[352633945,1739211039388,-226.30881288,0.00010958,2]
[352633947,1739211039397,-500.0,0.00010958,2]
[352633949,1739211039406,-807.05,0.00010958,2]
[352633951,1739211039416,-500.0,0.00010958,2]
[352633953,1739211039425,-500.0,0.00010958,2]
[352633955,1739211039435,-918.26,0.00010958,2]
[352633957,1739211039445,-500.0,0.00010958,2]
[352633960,1739211039455,-500.0,0.00010958,2]
[352633961,1739211039465,-500.0,0.00010958,2]
[352633964,1739211039475,-500.0,0.00010958,2]
[352633965,1739211039484,-607.23,0.00010958,2]
[352633968,1739211039494,-500.0,0.00010958,2]
[352633970,1739211039504,-500.0,0.00010958,2]
[352633971,1739211039513,-500.0,0.00010958,2]
[352633973,1739211039523,-500.0,0.00010958,2]
[352633975,1739211039533,-500.0,0.00010958,2]
[352633977,1739211039543,-500.0,0.00010958,2]
[352633979,1739211039552,-500.0,0.00010958,2]
[352633981,1739211039564,-500.0,0.00010958,2]
[352633983,1739211039575,-500.0,0.00010958,2]
[352633985,1739211039585,-1110.3,0.00010958,2]
[352633987,1739211039594,-644.07,0.00010958,2]
[352633989,1739211039604,-500.0,0.00010958,2]
[352633992,1739211039613,-500.0,0.00010958,2]
[352633994,1739211039623,-500.0,0.00010958,2]
[352633996,1739211039637,-305.55309439,0.00010958,2]
[352633998,1739211039649,-194.44690561,0.00010958,2]
[352634000,1739211039659,-500.0,0.00010958,2]
[352634002,1739211039668,-500.0,0.00010958,2]
[352634004,1739211039679,-500.0,0.00010958,2]
[352634006,1739211039689,-500.0,0.00010958,2]
[352634008,1739211039699,-500.0,0.00010958,2]
[352634010,1739211039709,-500.0,0.00010958,2]
[352634012,1739211039719,-57.33802332,0.00010958,2]
[352634014,1739211039730,-452.71911577,0.00010958,2]
[352634016,1739211039740,-500.0,0.00010958,2]
[352634018,1739211039749,-500.0,0.00010958,2]
[352634020,1739211039758,-31.6808842,0.00010958,2]
[352634023,1739211039770,-468.3191158,0.00010958,2]
[352634025,1739211039780,-1435.06,0.00010958,2]
[352634027,1739211039790,-613.64,0.00010958,2]
[352634029,1739211039800,-500.0,0.00010958,2]
[352634031,1739211039809,-894.63,0.00010958,2]
[352634033,1739211039819,-500.0,0.00010958,2]
[352634035,1739211039828,-500.0,0.00010958,2]
[352634037,1739211039837,-503.60903029,0.00010958,2]
[352634039,1739211039846,-666.12,0.00010958,2]
[352634041,1739211039854,-500.0,0.00010958,2]
[352634043,1739211039864,-323.19290643,0.00010958,2]
[352634045,1739211039873,-500.0,0.00010958,2]
[352634047,1739211039882,-500.0,0.00010958,2]
[352634049,1739211039891,-500.0,0.00010958,2]
[352634051,1739211039900,-500.0,0.00010958,2]
[352634053,1739211039909,-2918.99,0.00010958,2]
[352634055,1739211039918,-500.0,0.00010958,2]
[352634057,1739211039930,-797.22,0.00010958,2]
[352634059,1739211039939,-635.05,0.00010958,2]
[352634061,1739211039948,-500.0,0.00010958,2]
[352634065,1739211039957,-500.0,0.00010958,2]
[352634069,1739211039967,-500.0,0.00010958,2]
[352634072,1739211039976,-1192.06,0.00010958,2]
[352634074,1739211039986,-946.49,0.00010958,2]
[352634077,1739211039995,-233.9891162,0.00010958,2]
[352634080,1739211040004,-500.0,0.00010958,2]
[352634084,1739211040014,-465.88895793,0.00010958,2]
[352634087,1739211040023,-1253.68,0.00010958,2]
[352634089,1739211040033,-500.0,0.00010958,2]
[352634093,1739211040044,-500.0,0.00010958,2]
[352634095,1739211040054,-701.03,0.00010958,2]
[352634098,1739211040063,-500.0,0.00010958,2]
[352634099,1739211040075,-952.39,0.00010958,2]
[352634102,1739211040086,-546.01,0.00010958,2]
[352634105,1739211040097,-500.0,0.00010958,2]
[352634107,1739211040107,-500.0,0.00010958,2]
[352634109,1739211040117,-500.0,0.00010958,2]
[352634111,1739211040126,-1255.34,0.00010958,2]
[352634112,1739211040136,-500.0,0.00010958,2]
[352634113,1739211040145,-1305.28,0.00010958,2]
[352634114,1739211040154,-500.0,0.00010958,2]
[352634115,1739211040163,-1017.49,0.00010958,2]
[352634116,1739211040173,-884.98,0.00010958,2]
[352634117,1739211040183,-500.0,0.00010958,2]
[352634118,1739211040192,-1083.28,0.00010958,2]
[352634119,1739211040202,-500.0,0.00010958,2]
[352634120,1739211040212,-500.0,0.00010958,2]
[352634121,1739211040222,-1264.09,0.00010958,2]
[352634122,1739211040232,-2579.05,0.00010958,2]
[352634124,1739211040242,-516.4,0.00010958,2]
[352634126,1739211040251,-818.37,0.00010958,2]
[352634127,1739211040261,-500.0,0.00010958,2]
[352634129,1739211040271,-500.0,0.00010958,2]
[352634132,1739211040280,-500.0,0.00010958,2]
[352634133,1739211040291,-597.49,0.00010958,2]
[352634135,1739211040304,-1418.67,0.00010958,2]
[352634147,1739211040406,-500.0,0.00010958,2]
[352634149,1739211040429,-753.06,0.00010958,2]
[352634151,1739211040440,-500.0,0.00010958,2]
[352634153,1739211040451,-1130.71,0.00010958,2]
[352634155,1739211040460,-299.42826396,0.00010958,2]
[352634157,1739211040469,-500.0,0.00010958,2]
[352634159,1739211040478,-733.57,0.00010958,2]
[352634161,1739211040487,-500.0,0.00010958,2]
[352634164,1739211040497,-500.0,0.00010958,2]
[352634166,1739211040508,-1220.23,0.00010958,2]
[352634167,1739211040517,-1371.53,0.00010958,2]
[352634170,1739211040528,-500.0,0.00010958,2]
[352634172,1739211040537,-500.0,0.00010958,2]
[352634173,1739211040547,-1579.95,0.00010958,2]
[352634176,1739211040556,-500.0,0.00010958,2]
[352634177,1739211040566,-500.0,0.00010958,2]
[352634179,1739211040577,-1440.31,0.00010958,2]
[352634181,1739211040587,-500.0,0.00010958,2]
[352634184,1739211040597,-500.0,0.00010958,2]
[352634186,1739211040607,-6839.64,0.00010958,2]
[352634188,1739211040617,-500.0,0.00010958,2]
[352634189,1739211040627,-500.0,0.00010958,2]
[352634191,1739211040639,-506.87,0.00010958,2]
[352634193,1739211040649,-2977.39,0.00010958,2]
[352634195,1739211040659,-848.3,0.00010958,2]
[352634197,1739211040668,-500.0,0.00010958,2]
[352634199,1739211040679,-602.91,0.00010958,2]
[352634201,1739211040688,-510.45,0.00010958,2]
[352634203,1739211040698,-556.46,0.00010958,2]
[352634205,1739211040707,-711.36,0.00010958,2]
[352634207,1739211040717,-500.0,0.00010958,2]
[352634209,1739211040728,-2032.0,0.00010958,2]
[352634211,1739211040737,-1551.55,0.00010958,2]
[352634214,1739211040748,-500.0,0.00010958,2]
[352634216,1739211040758,-684.28,0.00010958,2]
[352634218,1739211040768,-1458.65,0.00010958,2]
[352634220,1739211040778,-500.0,0.00010958,2]
[352634222,1739211040787,-500.0,0.00010958,2]
[352634224,1739211040797,-875.04,0.00010958,2]
[352634226,1739211040806,-1193.76,0.00010958,2]
[352634228,1739211040816,-500.0,0.00010958,2]
[352634230,1739211040826,-500.0,0.00010958,2]
[352634232,1739211040836,-659.39,0.00010958,2]
[352634233,1739211040845,-2138.77,0.00010958,2]
[352634235,1739211040856,-502.70916623,0.00010958,2]
[352634238,1739211040865,-500.0,0.00010958,2]
[352634239,1739211040875,-1528.01,0.00010958,2]
[352634242,1739211040884,-1005.63,0.00010958,2]
[352634244,1739211040894,-500.0,0.00010958,2]
[352634245,1739211040906,-700.45,0.00010958,2]
[352634248,1739211040918,-591.1,0.00010958,2]
[352634249,1739211040927,-1412.0,0.00010958,2]
[352634251,1739211040936,-500.0,0.00010958,2]
[352634253,1739211040945,-500.0,0.00010958,2]
[352634256,1739211040954,-3196.52,0.00010958,2]
[352634257,1739211040963,-1689.29,0.00010958,2]
[352634259,1739211040972,-500.0,0.00010958,2]
[352634261,1739211040981,-5480.6,0.00010958,2]
[352634263,1739211040991,-1453.32,0.00010958,2]
[352634265,1739211041000,-903.13,0.00010958,2]
[352634267,1739211041009,-500.0,0.00010958,2]
[352634268,1739211041018,-500.0,0.00010958,2]
[352634269,1739211041027,-500.0,0.00010958,2]
[352634270,1739211041036,-700.39,0.00010958,2]
[352634271,1739211041045,-870.27,0.00010958,2]
[352634272,1739211041054,-1384.35,0.00010958,2]
[352634273,1739211041063,-697.72,0.00010958,2]
[352634274,1739211041074,-1396.42,0.00010958,2]
[352634275,1739211041083,-723.99,0.00010958,2]
[352634276,1739211041093,-854.39,0.00010958,2]
[352634278,1739211041103,-1271.88,0.00010958,2]
[352634280,1739211041113,-934.66,0.00010958,2]
[352634282,1739211041121,-766.18,0.00010958,2]
[352634284,1739211041131,-500.0,0.00010958,2]
[352634286,1739211041140,-500.0,0.00010958,2]
[352634288,1739211041149,-500.0,0.00010958,2]
[352634290,1739211041159,-500.0,0.00010958,2]
[352634292,1739211041168,-500.0,0.00010958,2]
[352634294,1739211041177,-1792.43,0.00010958,2]
[352634296,1739211041186,-584.76,0.00010958,2]
[352634298,1739211041195,-500.0,0.00010958,2]
[352634300,1739211041205,-1298.92,0.00010958,2]
[352634302,1739211041214,-1273.9,0.00010958,2]
[352634320,1739211041434,-918.25,0.00010958,2]
[352634322,1739211041445,-2618.67,0.00010958,2]
[352634324,1739211041454,-500.0,0.00010958,2]
[352634326,1739211041463,-2654.35,0.00010958,2]
[352634327,1739211041472,-506.99388159,0.00010958,2]
[352634329,1739211041482,-516.17667201,0.00010958,2]
[352634331,1739211041491,-500.0,0.00010958,2]
[352634333,1739211041500,-500.0,0.00010958,2]
[352634334,1739211041509,-500.0,0.00010958,2]
[352634336,1739211041519,-2235.44,0.00010958,2]
[352634338,1739211041529,-500.0,0.00010958,2]
[352634340,1739211041538,-319.71529188,0.00010958,2]
[352634342,1739211041548,-500.0,0.00010958,2]
[352634344,1739211041557,-500.0,0.00010958,2]
[352634346,1739211041566,-500.0,0.00010958,2]
[352634347,1739211041576,-1768.17,0.00010958,2]
[352634349,1739211041585,-500.0,0.00010958,2]
[352634351,1739211041594,-1723.18,0.00010958,2]
[352634353,1739211041604,-500.0,0.00010958,2]
[352634354,1739211041612,-1714.52,0.00010958,2]
[352634356,1739211041622,-1488.17,0.00010958,2]
[352634358,1739211041634,-1409.05,0.00010958,2]
[352634360,1739211041643,-500.0,0.00010958,2]
[352634361,1739211041652,-500.0,0.00010958,2]
[352634363,1739211041661,-568.44,0.00010958,2]
[352634365,1739211041671,-500.0,0.00010958,2]
[352634367,1739211041680,-500.0,0.00010958,2]
[352634369,1739211041694,-2334.8,0.00010958,2]
[352634371,1739211041704,-500.0,0.00010958,2]
[352634373,1739211041713,-500.0,0.00010958,2]
[352634374,1739211041723,-625.56,0.00010958,2]
[352634376,1739211041732,-500.0,0.00010958,2]
[352634378,1739211041741,-500.0,0.00010958,2]
[352634380,1739211041750,-739.13,0.00010958,2]
[352634382,1739211041760,-500.0,0.00010958,2]
[352634383,1739211041769,-666.15,0.00010958,2]
[352634385,1739211041778,-1109.14,0.00010958,2]
[352634387,1739211041789,-721.33,0.00010958,2]
[352634389,1739211041798,-500.0,0.00010958,2]
[352634391,1739211041807,-3716.84,0.00010958,2]
[352634393,1739211041816,-1618.79,0.00010958,2]
[352634394,1739211041827,-500.0,0.00010958,2]
[352634396,1739211041837,-500.0,0.00010958,2]
[352634398,1739211041847,-6201.88,0.00010958,2]
[352634400,1739211041856,-500.0,0.00010958,2]
[352634402,1739211041865,-500.0,0.00010958,2]
[352634404,1739211041876,-500.0,0.00010958,2]
[352634406,1739211041885,-995.99,0.00010958,2]
[352634408,1739211041895,-500.0,0.00010958,2]
[352634410,1739211041905,-500.0,0.00010958,2]
[352634411,1739211041913,-1184.03,0.00010958,2]
[352634413,1739211041922,-500.0,0.00010958,2]
[352634415,1739211041932,-500.0,0.00010958,2]
[352634417,1739211041941,-2000.76,0.00010958,2]
[352634419,1739211041951,-500.0,0.00010958,2]
[352634421,1739211041960,-500.0,0.00010958,2]
[352634422,1739211041969,-2392.07,0.00010958,2]
[352634424,1739211041978,-1687.64,0.00010958,2]
[352634426,1739211041987,-1777.15,0.00010958,2]
[352634428,1739211041997,-510.14468661,0.00010958,2]
[352634430,1739211042006,-500.0,0.00010958,2]
[352634432,1739211042015,-500.0,0.00010958,2]
[352634433,1739211042025,-500.0,0.00010958,2]
[352634435,1739211042035,-578.06,0.00010958,2]
[352634437,1739211042044,-1322.08,0.00010958,2]
[352634439,1739211042054,-500.0,0.00010958,2]
[352634441,1739211042063,-2359.79,0.00010958,2]
[352634443,1739211042072,-500.0,0.00010958,2]
[352634444,1739211042081,-1034.98,0.00010958,2]
[352634446,1739211042091,-918.95,0.00010958,2]
[352634448,1739211042100,-559.66,0.00010958,2]
[352634450,1739211042109,-500.0,0.00010958,2]
[352634452,1739211042118,-1905.71,0.00010958,2]
[352634454,1739211042126,-1117.09,0.00010958,2]
[352634456,1739211042135,-824.37,0.00010958,2]
[352634457,1739211042145,-500.0,0.00010958,2]
[352634459,1739211042154,-500.0,0.00010958,2]
[352634461,1739211042163,-1923.64,0.00010958,2]
[352634463,1739211042172,-500.0,0.00010958,2]
[352634465,1739211042181,-500.0,0.00010958,2]
[352634467,1739211042190,-500.0,0.00010958,2]
[352634468,1739211042199,-868.74,0.00010958,2]
[352634470,1739211042208,-500.0,0.00010958,2]
[352634472,1739211042217,-1558.21,0.00010958,2]
[352634474,1739211042226,-2359.91,0.00010958,2]
[352634476,1739211042235,-500.0,0.00010958,2]
[352634478,1739211042245,-500.0,0.00010958,2]
[352634479,1739211042254,-500.0,0.00010958,2]
[352634481,1739211042263,-781.52,0.00010958,2]
[352634496,1739211042397,-1239.52,0.00010958,2]
[352634498,1739211042408,-500.0,0.00010958,2]
[352634500,1739211042417,-500.0,0.00010958,2]
[352634502,1739211042426,-500.0,0.00010958,2]
[352634503,1739211042436,-500.0,0.00010958,2]
[352634504,1739211042446,-859.31,0.00010958,2]
[352634505,1739211042455,-500.0,0.00010958,2]
[352634506,1739211042464,-500.0,0.00010958,2]
[352634507,1739211042473,-2349.21,0.00010958,2]
[352634508,1739211042483,-1057.83,0.00010958,2]
[352634509,1739211042492,-935.03,0.00010958,2]
[352634510,1739211042501,-500.0,0.00010958,2]
[352634511,1739211042510,-1201.63,0.00010958,2]
[352634512,1739211042520,-873.37,0.00010958,2]
[352634513,1739211042529,-941.59,0.00010958,2]
[352634514,1739211042539,-2658.27,0.00010958,2]
[352634515,1739211042548,-661.21,0.00010958,2]
[352634516,1739211042557,-500.0,0.00010958,2]
[352634518,1739211042567,-741.3,0.00010958,2]
[352634520,1739211042577,-514.41276543,0.00010958,2]
[352634522,1739211042586,-664.52,0.00010958,2]
[352634524,1739211042596,-625.81,0.00010958,2]
[352634526,1739211042606,-500.0,0.00010958,2]
[352634527,1739211042615,-500.0,0.00010958,2]
[352634530,1739211042625,-492.43,0.00010958,2]
[352634532,1739211042639,-493.06,0.00010958,2]
[352634533,1739211042649,-500.0,0.00010959,2]
[352634535,1739211042658,-136.50643365,0.00010959,2]
[352634562,1739211042874,-386.45343569,0.00010959,2]
[352634564,1739211042886,-1477.04013066,0.00010959,2]
[352634566,1739211042895,-500.0,0.00010959,2]
[352634568,1739211042904,-200.0,0.00010959,2]
[352634571,1739211042913,-76.98988534,0.00010973,2]
[352634573,1739211042924,-329.70809118,0.00010973,2]
[352634576,1739211042933,-500.0,0.00010973,2]
[352634579,1739211042943,-500.0,0.00010985,2]
[352634582,1739211042952,-150.0,0.00010988,2]
[352634584,1739211042961,-93.54190982,0.0001099,2]
[352634605,1739211043144,-612.66636547,0.0001099,2]
[352634607,1739211043153,-706.20827529,0.0001099,2]
[352634609,1739211043163,-706.20827529,0.0001099,2]
[352634611,1739211043172,-1000.0,0.00010992,2]
[352634613,1739211043181,-147204.90223849,0.00010998,2]
[352634636,1739211043396,-2160.63159694,0.00010998,2]
[352634645,1739211043471,-975.04314244,0.00010998,2]
[352634647,1739211043482,-7226.38701854,0.00010998,2]
[352634695,1739211043854,-500.0,0.00010958,2]
[352634697,1739211043864,-556.41401008,0.00010998,2]
[352634948,1739211046235,-500.0,0.00010958,2]
[352634950,1739211046245,-500.0,0.00010958,2]
[352634952,1739211046254,-500.0,0.00010958,2]
[352634954,1739211046264,-500.0,0.00010958,2]
[352634956,1739211046274,-596.62,0.00010958,2]
[352634958,1739211046284,-534.47615633,0.00010958,2]
[352634960,1739211046293,-2797.36,0.00010958,2]
[352634962,1739211046302,-500.0,0.00010958,2]
[352634964,1739211046311,-90086.53225356,0.00010998,2]
[352634966,1739211046321,-300.0,0.00010999,2]
[352634968,1739211046332,-2827.1373375,0.00010999,2]
[352634970,1739211046341,-2000.0,0.00010999,2]
[352634971,1739211046351,-2000.0,0.00010999,2]
[352634973,1739211046360,-1669.0,0.00010999,2]
[352634976,1739211046370,-356.6299702,0.00011,3]
[352634978,1739211046380,-1667.95908134,0.00011,2]
[352634979,1739211046390,-215053.92686548,0.00011,3]
[352634982,1739211046408,-20225.04983083,0.00011,3]
[352634985,1739211046427,-859.77137483,0.00011,3]
[352635604,1739211424324,1041.64,8.219e-05,2]
[352635610,1739212028233,-150.0,8.772e-05,2]
[352635617,1739212110695,1000.0,8.651e-05,2]
[352635642,1739212231197,1000.0,8.15e-05,2]
[352635643,1739212231253,1000.0,8.162e-05,2]
[352635666,1739212232306,-494.495,8.836e-05,2]
[352635668,1739212232316,-150.0,8.893e-05,2]
[352635670,1739212232326,-46.00470552,8.965e-05,2]
[352635675,1739212232364,-624.65800251,8.965e-05,2]
[352635678,1739212232455,-329.33729197,8.965e-05,2]
[352635679,1739212232464,-250.0,8.974e-05,2]
[352635680,1739212232474,-150.0,9.034e-05,2]
[352635681,1739212232484,-1000.0,9.061e-05,2]
[352635682,1739212232493,-2320.66270803,9.065e-05,2]
[352635683,1739212232512,-404.92261432,9.065e-05,2]
[352635684,1739212232523,-4109.1146611,9.065e-05,2]
[352635685,1739212232535,-472.4999982,9.065e-05,2]
[352635686,1739212232547,-585.49977958,9.065e-05,2]
[352635687,1739212232558,-309.295005,9.065e-05,2]
[352635688,1739212232569,-384.54,9.065e-05,2]
[352635689,1739212232591,-1200.0,9.065e-05,2]
[352635690,1739212232616,-384.12105095,9.065e-05,2]
[352635691,1739212232631,-521.09921905,9.065e-05,2]
[352635692,1739212232642,-255.53133888,9.065e-05,2]
[352635693,1739212232653,-411.61000021,9.065e-05,2]
[352635694,1739212232664,-400.24999975,9.065e-05,2]
[352635695,1739212232675,-382.3260001,9.065e-05,2]
[352635696,1739212232686,-521.662504,9.065e-05,2]
[352635697,1739212232698,-296.101408,9.065e-05,2]
[352635698,1739212232709,-286.29047868,9.065e-05,2]
[352635700,1739212232720,-301.35,9.065e-05,2]
[352635701,1739212232733,-4567.5776061,9.065e-05,2]
[352635703,1739212232771,-770.32955989,9.065e-05,2]
[352636233,1739212238164,-5015.21606816,9.065e-05,2]
[352636235,1739212238173,-150.0,9.084e-05,2]
[352636237,1739212238182,-150.0,9.141e-05,2]
[352636239,1739212238192,-871.38393184,9.329e-05,2]
[352636241,1739212238203,-128.61606816,9.329e-05,2]
[352636243,1739212238213,-150.0,9.396e-05,2]
[352636245,1739212238222,-150.0,9.459e-05,2]
[352636247,1739212238231,-398.33,9.522e-05,2]
[352636249,1739212238240,-165.59,9.534e-05,2]
[352636251,1739212238249,-150.0,9.688e-05,2]
[352636253,1739212238259,-1000.0,9.788e-05,2]
[352636255,1739212238269,-552.68,9.84e-05,2]
[352636258,1739212238278,-1000.0,9.86e-05,2]
[352636260,1739212238288,-1000.0,9.939e-05,2]
[352636262,1739212238297,-1000.0,9.99e-05,2]
[352636263,1739212238306,-150.0,9.992e-05,2]
[352636266,1739212238316,-150.0,9.993e-05,2]
[352636267,1739212238325,-150.0,9.999e-05,2]
[352636270,1739212238334,-13218.11326283,0.0001,2]
[352636272,1739212238346,-25487.25,0.0001,2]
[352636274,1739212238357,-939.84,0.0001,2]
[352636276,1739212238369,-8239.9999986,0.0001,2]
[352636280,1739212238401,-26492.77405302,0.0001,2]
[352636283,1739212238412,-775.89788161,0.0001,2]
[352636289,1739212238466,-3043.66152464,0.0001,2]
[352636291,1739212238478,-185174.71916597,0.0001,2]
[352636293,1739212238489,-627.34078749,0.0001,2]
[352636296,1739212238508,-5155.42355186,0.0001,2]
[352636299,1739212238519,-389.900012,0.0001,2]
[352636308,1739212238602,-52737.19463109,0.0001,2]
[352636310,1739212238612,-1000.0,0.0001002,2]
[352636312,1739212238622,-1000.0,0.00010032,2]
[352636314,1739212238632,-1574.23,0.00010103,2]
[352636316,1739212238642,-1000.0,0.00010103,2]
[352636318,1739212238651,-1000.0,0.00010121,2]
[352636320,1739212238661,-338.22,0.00010137,2]
[352636322,1739212238671,-1000.0,0.00010197,2]
[352636324,1739212238682,-150.0,0.00010205,2]
[352636326,1739212238692,-150.0,0.00010225,2]
[352636328,1739212238702,-506.04,0.00010256,2]
[352636330,1739212238712,-150.0,0.00010275,2]
[352636332,1739212238721,-150.0,0.00010308,2]
[352636334,1739212238731,-1000.0,0.00010318,2]
[352636336,1739212238741,-1000.0,0.00010321,2]
[352636338,1739212238751,-505.36,0.00010321,2]
[352636340,1739212238761,-150.0,0.00010358,2]
[352636342,1739212238770,-150.0,0.00010374,2]
[352636344,1739212238780,-878.38,0.00010411,2]
[352636346,1739212238790,-509.96,0.00010419,2]
[352636348,1739212238799,-508.9,0.00010419,2]
[352636350,1739212238809,-150.0,0.00010436,2]
[352636352,1739212238818,-620.12,0.00010438,2]
[352636354,1739212238828,-1041.64,0.00010474,2]
[352636356,1739212238838,-9007.41,0.00010475,2]
[352636358,1739212238847,-299.99,0.00010475,2]